bitfinex-derivatives/quotes_BTCF0:USTF0_20250709
["timestamp","ask_amount","ask_price","bid_price","bid_amount"]
[1752101463758,0.85604379,111450.0,111440.0,0.67179879]
[1752101463964,1.09514296,111450.0,111440.0,0.67179879]
[1752101465564,1.09514296,111450.0,111440.0,0.67178109]
[1752101468267,1.09514296,111450.0,111440.0,0.63054109]
[1752101470270,1.09514296,111450.0,111440.0,0.49144499]
[1752101470471,1.09514296,111450.0,111440.0,0.67085109]
[1752101471468,1.17583361,111450.0,111440.0,0.67083088]
[1752101471968,1.77573278,111450.0,111440.0,0.02921478]
[1752101472166,1.83883278,111450.0,111440.0,0.01524052]
[1752101472769,1.59973361,111450.0,111440.0,0.01524052]
[1752101473270,1.83883278,111450.0,111440.0,0.01524052]
[1752101474167,1.83883278,111450.0,111440.0,0.002]
[1752101474368,1.20955278,111450.0,111440.0,0.01530953]
[1752101474567,1.83811278,111450.0,111440.0,0.01530953]
[1752101475967,1.83811278,111450.0,111440.0,0.02929082]
[1752101476167,1.47731278,111450.0,111440.0,0.02929082]
[1752101476573,0.99911444,111450.0,111440.0,0.02929082]
[1752101476971,1.23821361,111450.0,111440.0,0.02929082]
[1752101477374,1.59901361,111450.0,111440.0,0.02929082]
[1752101477967,1.59901361,111450.0,111440.0,0.04574082]
[1752101478169,0.33965444,111450.0,111440.0,0.24900692]
[1752101478370,0.93589444,111450.0,111440.0,0.60980692]
[1752101478576,0.93589444,111450.0,111440.0,0.31230692]
[1752101478775,1.17499361,111450.0,111440.0,0.31230692]
[1752101480375,1.17499361,111450.0,111440.0,0.67313513]
[1752101480575,1.17499361,111450.0,111440.0,0.31233513]
[1752101483278,1.17499361,111450.0,111440.0,0.10906903]
[1752101483279,1.29669444,111450.0,111440.0,0.10906903]
[1752101483572,1.56589361,111450.0,111440.0,0.10906903]
[1752101483778,1.23679361,111450.0,111440.0,0.10906903]
[1752101483971,1.23679361,111450.0,111440.0,0.06201903]
[1752101484176,1.83669278,111450.0,111440.0,0.02931903]
[1752101484779,1.47589278,111450.0,111440.0,0.02931903]
[1752101485981,1.47589278,111450.0,111440.0,0.02932574]
[1752101486180,1.83669278,111450.0,111440.0,0.02932574]
[1752101486381,1.75600213,111450.0,111440.0,0.02932574]
[1752101486781,1.50296324,111450.0,111440.0,0.02932574]
[1752101488986,1.50296324,111450.0,111440.0,0.02933527]
[1752101489680,1.86376324,111450.0,111440.0,0.02933527]
[1752101490088,1.86376324,111450.0,111440.0,0.01531624]
[1752101490280,0.1794382,111420.0,111410.0,0.62168973]
[1752101490581,1.08868952,111420.0,111410.0,0.2605043]
[1752101490887,1.08868952,111420.0,111410.0,0.2843643]
[1752101491085,1.08868952,111420.0,111410.0,0.6451643]
[1752101491280,0.84959035,111420.0,111410.0,0.2843643]
[1752101491479,0.84959035,111420.0,111410.0,0.6521643]
[1752101491685,1.08868952,111420.0,111410.0,0.6521643]
[1752101491881,1.32778869,111420.0,111410.0,0.08805]
[1752101492088,1.32778869,111420.0,111410.0,0.02745]
[1752101492290,1.21563035,111420.0,111410.0,0.02745]
[1752101492491,1.36552869,111420.0,111410.0,0.02045]
[1752101492678,1.39772869,111420.0,111410.0,0.02245]
[1752101492878,1.39772869,111420.0,111410.0,0.01845]
[1752101493084,1.83926754,111420.0,111410.0,0.002]
[1752101493787,1.91204473,111420.0,111410.0,0.002]
[1752101493992,1.93895768,111420.0,111410.0,0.002]
[1752101494195,1.83130588,111420.0,111410.0,0.002]
[1752101495084,1.91193266,111420.0,111410.0,0.002]
[1752101495287,0.1794543,111410.0,111400.0,0.00179525]
[1752101495490,0.69456572,111410.0,111400.0,0.79507786]
[1752101495685,0.87402002,111410.0,111400.0,0.89918786]
[1752101495891,0.87402002,111410.0,111400.0,0.66008869]
[1752101496493,0.87402002,111410.0,111400.0,0.64617575]
[1752101497088,0.19782787,111410.0,111400.0,0.88527492]
[1752101497293,0.98740048,111420.0,111410.0,0.1794543]
[1752101497488,0.2691737,111420.0,111410.0,0.6205043]
[1752101497693,0.95029143,111420.0,111410.0,0.88346347]
[1752101498193,0.95029143,111420.0,111410.0,0.84315347]
[1752101498395,0.95029143,111420.0,111410.0,0.88270347]
[1752101498595,0.95029143,111420.0,111410.0,0.6436043]
[1752101499790,1.1893906,111420.0,111410.0,0.6436043]
[1752101501296,1.1893906,111420.0,111410.0,0.46415]
[1752101501596,1.1893906,111420.0,111410.0,0.10335]
[1752101501995,0.95029143,111420.0,111410.0,0.10335]
[1752101502195,1.1893906,111420.0,111410.0,0.2963065]
[1752101503302,1.1893906,111420.0,111410.0,0.6571065]
[1752101503906,1.1893906,111420.0,111410.0,0.2963065]
[1752101504205,1.1893906,111420.0,111410.0,0.6571065]
[1752101504406,0.95029143,111420.0,111410.0,0.6571065]
[1752101504903,1.1893906,111420.0,111410.0,0.6175565]
[1752101505106,1.1893906,111420.0,111410.0,0.6571065]
[1752101507206,1.42848977,111420.0,111410.0,0.1168522]
[1752101507405,1.1893906,111420.0,111410.0,0.1168522]
[1752101508509,1.2530906,111420.0,111410.0,0.0468022]
[1752101509209,1.2530906,111420.0,111410.0,0.0620722]
[1752101510500,1.2530906,111420.0,111410.0,0.0620256]
[1752101511307,1.01399143,111420.0,111410.0,0.2414799]
[1752101511515,1.01399143,111420.0,111410.0,0.2733799]
[1752101511704,1.2530906,111420.0,111410.0,0.2733799]
[1752101511905,1.2530906,111420.0,111410.0,0.6341799]
[1752101512212,1.2530906,111420.0,111410.0,0.2733799]
[1752101512714,1.1913906,111420.0,111410.0,0.2733799]
[1752101512906,1.1913906,111420.0,111410.0,0.2976599]
[1752101514008,1.1893906,111420.0,111410.0,0.2976599]
[1752101515009,1.1893906,111420.0,111410.0,0.0939256]
[1752101516011,1.1893906,111420.0,111410.0,0.2733799]
[1752101516221,0.95029143,111420.0,111410.0,0.0939256]
[1752101516514,1.1893906,111420.0,111410.0,0.2733799]
[1752101516713,1.1893906,111420.0,111410.0,0.0939256]
[1752101517117,1.26996105,111420.0,111410.0,0.2733799]
[1752101517308,1.26996105,111420.0,111410.0,0.0939256]
[1752101517507,1.26996105,111420.0,111410.0,0.2733799]
[1752101518716,1.26996105,111420.0,111410.0,0.0939256]
[1752101519212,1.26996105,111420.0,111410.0,0.2733799]
[1752101519619,1.03086188,111420.0,111410.0,0.2733799]
[1752101519808,1.26996105,111420.0,111410.0,0.2733799]
[1752101521316,1.26996105,111420.0,111410.0,0.27333409]
[1752101521714,1.03086188,111420.0,111410.0,0.27333409]
[1752101522115,1.03086188,111420.0,111410.0,0.63413409]
[1752101522418,0.95029143,111420.0,111410.0,0.63413409]
[1752101522618,0.95029143,111420.0,111410.0,0.61886409]
[1752101522819,0.95029143,111420.0,111410.0,0.65841409]
[1752101524315,0.96021143,111420.0,111410.0,0.65841409]
[1752101524616,1.1993106,111420.0,111410.0,0.65841409]
[1752101524916,1.27988105,111420.0,111410.0,0.65841409]
[1752101525921,1.04078188,111420.0,111410.0,0.65841409]
[1752101526122,1.27988105,111420.0,111410.0,0.65841409]
[1752101527924,1.27988105,111420.0,111410.0,0.61886409]
[1752101528123,1.27988105,111420.0,111410.0,0.65877409]
[1752101529821,1.04078188,111420.0,111410.0,0.65877409]
[1752101531124,1.04078188,111420.0,111410.0,0.66214838]
[1752101532827,1.04078188,111420.0,111410.0,0.67266826]
[1752101533621,0.96021143,111420.0,111410.0,0.67266826]
[1752101535722,0.96021143,111420.0,111410.0,0.65588418]
[1752101536028,1.1993106,111420.0,111410.0,0.59970418]
[1752101536227,1.2652106,111420.0,111410.0,0.59970418]
[1752101536620,1.02611143,111420.0,111410.0,0.23890418]
[1752101536820,1.2652106,111420.0,111410.0,0.20560418]
[1752101537020,1.2652106,111420.0,111410.0,0.21875494]
[1752101537427,1.2652106,111420.0,111410.0,0.21875486]
[1752101537630,1.34578105,111420.0,111410.0,0.21875486]
[1752101539925,1.34578105,111420.0,111410.0,0.57955486]
[1752101540322,1.34578105,111420.0,111410.0,0.56903498]
[1752101540627,1.34578105,111420.0,111410.0,0.2056049]
[1752101541121,1.30226332,111420.0,111410.0,0.2056049]
[1752101541331,1.34433317,111420.0,111410.0,0.2056049]
[1752101541736,1.34433317,111420.0,111410.0,0.20823211]
[1752101542232,1.34433317,111420.0,111410.0,0.2082343]
[1752101543034,1.34433317,111420.0,111410.0,0.5690343]
[1752101543236,1.34433317,111420.0,111410.0,0.2082343]
[1752101543533,1.34433317,111420.0,111410.0,0.22226169]
[1752101544342,1.34433317,111420.0,111410.0,0.02717739]
[1752101544343,1.94423234,111420.0,111410.0,0.02717739]
[1752101544549,1.94423234,111420.0,111410.0,0.03769793]
[1752101544840,1.94423234,111420.0,111410.0,0.02717739]
[1752101545029,1.466034,111420.0,111410.0,0.02717739]
[1752101545233,1.94423234,111420.0,111410.0,0.02717739]
[1752101546844,1.86366189,111420.0,111410.0,0.02717739]
[1752101547147,1.86366189,111420.0,111410.0,0.02731204]
[1752101548041,1.94440519,111420.0,111410.0,0.02731204]
[1752101548241,1.86366189,111420.0,111410.0,0.02731204]
[1752101549446,1.97131369,111420.0,111410.0,0.02731326]
[1752101550154,1.37141452,111420.0,111410.0,0.22239756]
[1752101550549,1.37141452,111420.0,111410.0,0.22239731]
[1752101550742,1.34447896,111420.0,111410.0,0.22239731]
[1752101550954,1.21298272,111420.0,111410.0,0.24513731]
[1752101551161,1.29369835,111420.0,111410.0,0.27693731]
[1752101551359,1.29369835,111420.0,111410.0,0.30913731]
[1752101551360,1.05459918,111420.0,111410.0,0.30913731]
[1752101551866,1.05459918,111420.0,111410.0,0.66993731]
[1752101552563,1.29369835,111420.0,111410.0,0.66993731]
[1752101553466,1.29369835,111420.0,111410.0,0.6698502]
[1752101553963,1.29369835,111420.0,111410.0,0.4903959]
[1752101554166,1.05459918,111420.0,111410.0,0.0272259]
[1752101554365,1.71749835,111420.0,111410.0,0.0272259]
[1752101554569,1.11759918,111420.0,111410.0,0.0272259]
[1752101554762,1.35669835,111420.0,111410.0,0.0272733]
[1752101555267,1.95659752,111420.0,111410.0,0.0272733]
[1752101555468,1.71749835,111420.0,111410.0,0.0272733]
[1752101556255,1.35669835,111420.0,111410.0,0.04407448]
[1752101556556,1.95659752,111420.0,111410.0,0.04407448]
[1752101557165,1.59579752,111420.0,111410.0,0.04407448]
[1752101558771,1.35669835,111420.0,111410.0,0.04407448]
[1752101559068,1.35669835,111420.0,111410.0,0.05962448]
[1752101560573,1.35669835,111420.0,111410.0,0.09152448]
[1752101561071,1.35669835,111420.0,111410.0,0.06425118]
[1752101562373,1.35869835,111420.0,111410.0,0.24370548]
[1752101562770,1.35869835,111420.0,111410.0,0.27520548]
[1752101562972,1.36149835,111420.0,111410.0,0.27520548]
[1752101564575,1.3617981,111420.0,111410.0,0.27520548]
[1752101565475,0.6333581,111420.0,111410.0,0.63600548]
[1752101565772,1.01379593,111420.0,111410.0,0.89873465]
[1752101566671,0.9330803,111420.0,111410.0,0.65963548]
[1752101567175,0.9310803,111420.0,111410.0,0.65963548]
[1752101568681,1.01179593,111420.0,111410.0,0.67366193]
[1752101568872,1.01179593,111420.0,111410.0,0.68418177]
[1752101572676,1.01179593,111420.0,111410.0,0.65963548]
[1752101572883,1.01179593,111420.0,111410.0,0.68418196]
[1752101573681,1.17017947,111420.0,111410.0,0.68418196]
[1752101575783,1.17017947,111420.0,111410.0,0.68418197]
[1752101577487,1.17017947,111420.0,111410.0,0.32338197]
[1752101577689,1.17017947,111420.0,111410.0,0.68418197]
[1752101577987,1.2508951,111420.0,111410.0,0.68418197]
[1752101580388,1.01179593,111420.0,111410.0,0.05644649]
[1752101580593,1.48999427,111420.0,111410.0,0.2540689]
[1752101580794,1.3134951,111420.0,111410.0,0.25407046]
[1752101580994,1.3134951,111420.0,111410.0,0.28547046]
[1752101581189,1.07439593,111420.0,111410.0,0.28547046]
[1752101581394,1.3134951,111420.0,111410.0,0.28547046]
[1752101582793,1.3134951,111420.0,111410.0,0.64627046]
[1752101583096,1.07439593,111420.0,111410.0,0.64628384]
[1752101583286,1.3134951,111420.0,111410.0,0.64628384]
[1752101583486,1.3134951,111420.0,111410.0,0.64628385]
[1752101583887,1.3134951,111420.0,111410.0,0.63313077]
[1752101584095,1.2508951,111420.0,111410.0,0.65676077]
[1752101584298,1.2508951,111420.0,111410.0,0.66728079]
[1752101585093,1.2508951,111420.0,111410.0,0.65676077]
[1752101586093,1.01179593,111420.0,111410.0,0.65676077]
[1752101586594,1.01179593,111420.0,111410.0,0.66728079]
[1752101588302,1.2508951,111420.0,111410.0,0.66728079]
[1752101589100,1.01179593,111420.0,111410.0,0.11560657]
[1752101589295,1.01179593,111420.0,111410.0,0.30821491]
[1752101589497,1.2508951,111420.0,111410.0,0.30821491]
[1752101589700,1.01179593,111420.0,111410.0,0.30821491]
[1752101590201,1.2508951,111420.0,111410.0,0.30821491]
[1752101590390,1.2508951,111420.0,111410.0,0.30558137]
[1752101591202,1.2508951,111420.0,111410.0,0.32294809]
[1752101592002,1.2508951,111420.0,111410.0,0.68374809]
[1752101592198,1.2508951,111420.0,111410.0,0.66972103]
[1752101592500,1.2508951,111420.0,111410.0,0.28466784]
[1752101592702,1.2508951,111420.0,111410.0,0.68374784]
[1752101593003,1.2508951,111420.0,111410.0,0.32294784]
[1752101593203,1.2508951,111420.0,111410.0,0.68374784]
[1752101593503,1.2508951,111420.0,111410.0,0.69689377]
[1752101594101,1.01179593,111420.0,111410.0,0.69689377]
[1752101594402,1.2508951,111420.0,111410.0,0.69689377]
[1752101594603,1.2508951,111420.0,111410.0,0.68374784]
[1752101595009,1.01179593,111420.0,111410.0,0.68374784]
[1752101595199,1.01179593,111420.0,111410.0,0.68374743]
[1752101596200,0.34739593,111420.0,111410.0,0.68374743]
[1752101596406,0.12308523,111420.0,111410.0,0.68374743]
[1752101596702,0.97404333,111420.0,111410.0,0.9228466]
[1752101597401,0.97404333,111420.0,111410.0,0.93607131]
[1752101598094,0.97404333,111420.0,111410.0,0.93610267]
[1752101600107,0.8933277,111420.0,111410.0,0.93610267]
[1752101600801,0.8917277,111420.0,111410.0,0.93610267]
[1752101606302,0.0423696,111420.0,111410.0,2.27150267]
[1752101606509,0.9364643,111430.0,111420.0,0.1794381]
[1752101606709,0.9364643,111430.0,111420.0,0.91711985]
[1752101607011,0.9364643,111430.0,111420.0,0.91709602]
[1752101607601,0.9384643,111430.0,111420.0,0.91709602]
[1752101609316,0.9384643,111430.0,111420.0,0.67799685]
[1752101609517,0.9384643,111430.0,111420.0,0.91709602]
[1752101609919,0.9384643,111430.0,111420.0,0.91698367]
[1752101612721,0.9384643,111430.0,111420.0,0.91695463]
[1752101613820,0.9384643,111430.0,111420.0,0.9064359]
[1752101614522,0.8936075,111430.0,111420.0,0.9064359]
[1752101614723,0.8936075,111430.0,111420.0,0.90381443]
[1752101615527,0.8936075,111430.0,111420.0,0.9129506]
[1752101615730,0.8936075,111430.0,111420.0,0.91294946]
[1752101616229,0.1814319,111430.0,111420.0,0.91294946]
[1752101616529,0.8451119,111430.0,111420.0,0.91294946]
[1752101617627,0.66568,111430.0,111420.0,0.91294946]
[1752101617833,0.66472,111430.0,111420.0,1.15204863]
[1752101618431,0.66472,111430.0,111420.0,0.91294946]
[1752101618628,0.70623443,111430.0,111420.0,1.11376863]
[1752101618828,0.70623443,111430.0,111420.0,0.91456946]
[1752101619132,0.04351443,111430.0,111420.0,1.15366863]
[1752101619332,0.04351443,111430.0,111420.0,1.48366863]
[1752101620032,0.04351443,111430.0,111420.0,1.49366863]
[1752101621429,0.04351443,111430.0,111420.0,1.48315006]
[1752101621628,0.04351443,111430.0,111420.0,1.49365917]
[1752101622132,0.002,111430.0,111420.0,1.49365917]
[1752101624532,0.002,111430.0,111420.0,1.15365917]
[1752101624727,0.04342077,111430.0,111420.0,1.15365917]
[1752101627337,0.04342077,111430.0,111420.0,1.15360625]
[1752101628936,0.04342077,111430.0,111420.0,1.15372287]
[1752101630435,0.04342077,111430.0,111420.0,1.15582994]
[1752101631139,0.04142077,111430.0,111420.0,1.15782994]
[1752101632531,0.04142077,111430.0,111420.0,1.46782994]
[1752101633238,0.04142077,111430.0,111420.0,1.46782997]
[1752101633638,0.04142077,111430.0,111420.0,1.22782997]
[1752101633843,0.04142077,111430.0,111420.0,1.21221997]
[1752101636140,0.04142077,111430.0,111420.0,1.22221997]
[1752101638839,0.22084277,111430.0,111420.0,1.22221997]
[1752101639042,0.22084277,111430.0,111420.0,0.62456884]
[1752101639043,0.46000025,111430.0,111420.0,0.62456884]
[1752101639245,0.76165773,111430.0,111420.0,0.56877884]
[1752101639548,0.76165773,111430.0,111420.0,0.58195828]
[1752101639738,0.52250025,111430.0,111420.0,0.58195828]
[1752101639940,0.52250025,111430.0,111420.0,0.04172018]
[1752101640140,0.52250025,111430.0,111420.0,0.22115828]
[1752101641545,0.52250025,111430.0,111420.0,0.04172018]
[1752101641946,0.52250025,111430.0,111420.0,0.22115828]
[1752101642853,0.52263325,111430.0,111420.0,0.22115828]
[1752101644450,0.52263325,111430.0,111420.0,0.21064083]
[1752101646646,0.52263325,111430.0,111420.0,0.19461754]
[1752101647553,0.52263325,111430.0,111420.0,0.19472109]
[1752101648242,0.52263325,111430.0,111420.0,0.01528299]
[1752101648544,0.88343325,111430.0,111420.0,0.0258027]
[1752101648738,0.52263325,111430.0,111420.0,0.0258027]
[1752101648948,0.96414888,111430.0,111420.0,0.01528299]
[1752101649448,0.60334888,111430.0,111420.0,0.01532025]
[1752101651251,0.1794381,111420.0,111410.0,0.6748283]
[1752101651451,0.93473887,111420.0,111410.0,0.7131383]
[1752101652059,0.93473887,111420.0,111410.0,0.68157538]
[1752101652351,1.17402935,111420.0,111410.0,0.68157538]
[1752101652550,1.17402935,111420.0,111410.0,0.6956018]
[1752101652751,0.93473887,111420.0,111410.0,0.6956018]
[1752101652946,1.17402935,111420.0,111410.0,0.6956018]
[1752101653154,0.93473887,111420.0,111410.0,0.6956018]
[1752101653956,0.28305887,111420.0,111410.0,0.6956018]
[1752101654254,0.93389887,111420.0,111410.0,0.6956018]
[1752101655556,1.03966131,111430.0,111420.0,11.67610113]
[1752101655757,1.32974131,111430.0,111420.0,11.70342773]
[1752101656550,1.24902568,111430.0,111420.0,11.70342773]
[1752101656749,1.69054131,111430.0,111420.0,11.70342773]
[1752101657450,1.92983179,111430.0,111420.0,11.70342773]
[1752101657655,1.69054131,111430.0,111420.0,11.70342773]
[1752101657858,1.69254131,111430.0,111420.0,11.70342773]
[1752101658156,1.61182568,111430.0,111420.0,11.70342773]
[1752101658745,1.67412568,111430.0,111420.0,11.70342773]
[1752101659552,1.75484131,111430.0,111420.0,11.68940131]
[1752101660558,1.75484131,111430.0,111420.0,11.67610113]
[1752101661756,1.75484131,111430.0,111420.0,11.68949388]
[1752101662757,1.75484131,111430.0,111420.0,11.67610113]
[1752101663662,1.75484131,111430.0,111420.0,11.68947149]
[1752101664353,2.1113278,111430.0,111420.0,11.67610113]
[1752101664659,2.45226397,111430.0,111420.0,11.67610113]
[1752101664864,2.45241921,111430.0,111420.0,11.67610113]
[1752101665155,2.34476741,111430.0,111420.0,11.67610113]
[1752101665362,2.09724741,111430.0,111420.0,11.67610113]
[1752101666861,1.61851121,111430.0,111420.0,11.67610113]
[1752101667056,2.09724741,111430.0,111420.0,11.67610113]
[1752101667662,1.9616106,111430.0,111420.0,11.68955653]
[1752101668764,1.9616106,111430.0,111420.0,11.72185653]
[1752101669360,2.14110661,111430.0,111420.0,11.68955653]
[1752101669567,2.24875841,111430.0,111420.0,11.67610113]
[1752101670370,2.48812651,111430.0,111420.0,11.67610113]
[1752101670568,2.38047471,111430.0,111420.0,11.53851823]
[1752101670768,2.27580799,111430.0,111420.0,11.53851823]
[1752101671063,2.51517609,111430.0,111420.0,11.53851823]
[1752101671270,2.27580799,111430.0,111420.0,11.53851823]
[1752101671769,2.14110661,111430.0,111420.0,11.53851823]
[1752101671966,2.27580799,111430.0,111420.0,11.53851823]
[1752101672865,2.14110661,111430.0,111420.0,11.53851823]
[1752101673572,2.24856836,111430.0,111420.0,11.53851823]
[1752101673771,2.14110661,111430.0,111420.0,11.53851823]
[1752101674476,2.38047471,111430.0,111420.0,11.29059533]
[1752101674771,2.38047471,111430.0,111420.0,10.3183328]
[1752101674772,2.86225998,111430.0,111420.0,10.3183328]
[1752101674970,2.86225998,111430.0,111420.0,9.60458297]
[1752101675172,2.86225998,111430.0,111420.0,9.11986617]
[1752101675472,2.14999568,111430.0,111420.0,8.85039267]
[1752101675672,2.86809998,111430.0,111420.0,8.75816367]
[1752101676173,2.84086153,111430.0,111420.0,8.75816367]
[1752101676374,2.7333986,111430.0,111420.0,8.75816367]
[1752101676573,2.84086153,111430.0,111420.0,8.66751747]
[1752101676771,2.60158729,111430.0,111420.0,8.66751747]
[1752101677875,2.49412436,111430.0,111420.0,8.24841731]
[1752101678078,2.62882574,111430.0,111420.0,8.13247151]
[1752101678268,2.62882574,111430.0,111420.0,7.76756941]
[1752101678675,2.62882574,111430.0,111420.0,7.47859851]
[1752101680283,2.37882574,111430.0,111420.0,7.47859851]
[1752101683381,2.37882574,111430.0,111420.0,7.39599461]
[1752101683579,2.37714574,111430.0,111420.0,7.39599461]
[1752101683788,2.37690574,111430.0,111420.0,7.39599461]
[1752101684286,2.37690574,111430.0,111420.0,7.45969461]
[1752101684482,2.34560574,111430.0,111420.0,7.45969461]
[1752101684689,2.21090436,111430.0,111420.0,7.29806272]
[1752101684987,1.7422063,111430.0,111420.0,7.17683905]
[1752101685188,2.12725127,111430.0,111420.0,7.17683905]
[1752101685482,2.12669127,111430.0,111420.0,7.19962905]
[1752101685690,1.93810933,111430.0,111420.0,7.19962905]
[1752101685888,2.07238815,111430.0,111420.0,7.19962905]
[1752101686786,2.31180318,111430.0,111420.0,7.19962905]
[1752101687686,2.13230717,111430.0,111420.0,7.19962905]
[1752101688086,2.13122717,111430.0,111420.0,7.19962905]
[1752101689689,3.37266717,111430.0,111420.0,7.11881581]
[1752101689994,3.13325214,111430.0,111420.0,7.11881581]
[1752101690194,2.99897332,111430.0,111420.0,7.11881581]
[1752101690492,3.00097332,111430.0,111420.0,7.11881581]
[1752101690693,3.24038835,111430.0,111420.0,7.11881581]
[1752101691298,3.24238835,111430.0,111420.0,7.11881581]
[1752101691695,3.00297332,111430.0,111420.0,7.11881581]
[1752101693397,2.76355829,111430.0,111420.0,7.11881581]
[1752101693598,3.00297332,111430.0,111420.0,7.11881581]
[1752101695701,3.36377332,111430.0,111420.0,7.11881581]
[1752101696002,3.49805214,111430.0,111420.0,7.11881581]
[1752101696194,3.60318835,111430.0,111420.0,7.11881581]
[1752101698400,3.73746717,111430.0,111420.0,7.11881581]
[1752101698896,3.49805214,111430.0,111420.0,7.11881581]
[1752101699697,3.39720825,111430.0,111420.0,7.11881581]
[1752101700600,3.21795043,111430.0,111420.0,7.11881581]
[1752101700806,3.35211621,111430.0,111420.0,7.11881581]
[1752101701403,3.5914182,111430.0,111420.0,7.11881581]
[1752101701808,2.9397782,111430.0,111420.0,7.11881581]
[1752101702104,3.5908982,111430.0,111420.0,7.11881581]
[1752101702706,3.5898982,111430.0,111420.0,7.11881581]
[1752101702905,3.35061859,111430.0,111420.0,7.11881581]
[1752101703205,3.34861859,111430.0,111420.0,7.11881581]
[1752101703398,3.3219822,111430.0,111420.0,7.11881581]
[1752101703906,3.3212222,111430.0,111420.0,7.11881581]
[1752101704405,3.21357977,111430.0,111420.0,7.11881581]
[1752101704607,2.56321977,111430.0,111420.0,7.11881581]
[1752101704905,3.21357977,111430.0,111420.0,7.11881581]
[1752101705503,3.21357977,111430.0,111420.0,7.13235221]
[1752101706105,3.21357977,111430.0,111420.0,7.11881581]
[1752101706409,3.21357977,111430.0,111420.0,7.1323508]
[1752101706605,3.21357977,111430.0,111420.0,7.11881581]
[1752101706805,3.21357977,111430.0,111420.0,7.13231175]
[1752101707007,2.56321977,111430.0,111420.0,7.13231175]
[1752101707207,3.29331149,111430.0,111420.0,7.13231175]
[1752101708604,3.21261977,111430.0,111420.0,7.11881581]
[1752101709006,3.3202622,111430.0,111420.0,7.11881581]
[1752101710313,3.21261977,111430.0,111420.0,7.11881581]
[1752101712303,3.53259303,111430.0,111420.0,7.10948636]
[1752101712508,3.6627303,111430.0,111420.0,7.12050581]
[1752101712808,3.6627303,111430.0,111420.0,6.5823673]
[1752101713206,3.7286303,111430.0,111420.0,6.5823673]
[1752101713803,3.7286303,111430.0,111420.0,6.5517673]
[1752101713804,3.80048388,111430.0,111420.0,6.5517673]
[1752101714009,3.80048388,111430.0,111420.0,6.17104673]
[1752101714010,3.99778107,111430.0,111420.0,6.17104673]
[1752101714313,3.89023034,111430.0,111420.0,5.59679693]
[1752101714513,3.89023034,111430.0,111420.0,5.42376213]
[1752101714717,3.89023034,111430.0,111420.0,5.32365303]
[1752101715015,4.02450916,111430.0,111420.0,5.16780173]
[1752101715216,4.02450916,111430.0,111420.0,5.02222353]
[1752101715418,4.02450916,111430.0,111420.0,4.66431753]
[1752101715613,4.02450916,111430.0,111420.0,4.5114936]
[1752101715814,4.02450916,111430.0,111420.0,3.86649569]
[1752101716317,4.02450916,111430.0,111420.0,3.66443943]
[1752101716513,3.89023034,111430.0,111420.0,3.66443943]
[1752101717519,4.02467392,111430.0,111420.0,3.66443943]
[1752101718220,4.02467392,111430.0,111420.0,3.61716753]
[1752101718620,3.89023034,111430.0,111420.0,3.61716753]
[1752101719022,4.14023034,111430.0,111420.0,2.12907716]
[1752101719323,4.46323122,111430.0,111420.0,1.76311947]
[1752101719522,4.27464928,111430.0,111420.0,1.55435207]
[1752101719726,4.14023034,111430.0,111420.0,1.14413277]
[1752101719929,4.32881228,111430.0,111420.0,0.80606657]
[1752101720133,4.32881228,111430.0,111420.0,0.66437537]
[1752101720334,4.27462481,111430.0,111420.0,0.41215217]
[1752101720534,4.27462481,111430.0,111420.0,0.28475817]
[1752101720736,4.27462481,111430.0,111420.0,0.08361527]
[1752101720925,0.1794542,111410.0,111400.0,0.04530532]
[1752101721131,1.82975777,111410.0,111400.0,0.06086532]
[1752101721333,1.98550659,111410.0,111400.0,0.06086532]
[1752101722337,2.09302247,111410.0,111400.0,0.06286532]
[1752101722528,2.09302247,111410.0,111400.0,0.08734532]
[1752101723340,2.09302247,111410.0,111390.0,0.00179541]
[1752101723341,0.1794703,111400.0,111390.0,0.00179541]
[1752101723640,1.65107438,111400.0,111390.0,0.04183541]
[1752101724243,1.57049208,111400.0,111390.0,0.04183541]
[1752101724442,1.65105458,111400.0,111390.0,0.04183541]
[1752101724642,1.57049208,111400.0,111390.0,0.04183541]
[1752101724943,1.57149208,111400.0,111390.0,0.04183541]
[1752101725238,0.90499961,111400.0,111390.0,0.04183541]
[1752101725434,1.54995961,111400.0,111390.0,0.04183541]
[1752101726237,0.66567524,111400.0,111390.0,0.28115978]
[1752101726438,1.31099524,111400.0,111390.0,0.28115978]
[1752101726644,1.31099524,111400.0,111390.0,0.34445978]
[1752101726839,1.38339439,111400.0,111390.0,0.34445978]
[1752101727145,1.38339439,111400.0,111390.0,0.10513541]
[1752101729946,0.73907439,111400.0,111390.0,0.10513541]
[1752101730151,1.38235439,111400.0,111390.0,0.76327055]
[1752101730550,1.38235439,111400.0,111390.0,0.79091636]
[1752101730850,1.30724865,111400.0,111390.0,0.55159199]
[1752101732839,1.30624865,111400.0,111390.0,0.52394618]
[1752101733045,1.30624865,111400.0,111390.0,0.52494618]
[1752101733450,1.30624865,111400.0,111390.0,0.34545978]
[1752101733647,1.2338495,111400.0,111390.0,0.34545978]
[1752101733854,1.2338495,111400.0,111390.0,0.52494618]
[1752101734450,1.2328495,111400.0,111390.0,0.52594618]
[1752101734949,1.2328495,111400.0,111390.0,0.34645978]
[1752101735344,1.2328495,111400.0,111390.0,0.10713541]
[1752101735550,1.2328495,111400.0,111390.0,0.35999356]
[1752101735950,1.2328495,111400.0,111390.0,0.53947973]
[1752101736147,0.5841295,111400.0,111390.0,0.53947973]
[1752101736353,1.2311695,111400.0,111390.0,0.53997678]
[1752101736656,0.5841295,111400.0,111390.0,0.55350322]
[1752101736855,1.2310495,111400.0,111390.0,0.55350313]
[1752101737151,0.8702495,111400.0,111390.0,0.55350313]
[1752101738657,0.8704095,111400.0,111390.0,0.55350313]
[1752101739462,0.0438592,111400.0,111390.0,1.58317149]
[1752101739765,0.0438592,111400.0,111390.0,1.58301614]
[1752101740859,0.0438592,111400.0,111390.0,1.59353766]
[1752101741962,0.0438592,111400.0,111390.0,1.58301614]
[1752101745059,0.30484554,111420.0,111410.0,0.1794542]
[1752101745260,0.95584554,111420.0,111410.0,0.48514017]
[1752101745457,0.95584554,111420.0,111410.0,0.54894017]
[1752101745656,0.8752998,111420.0,111410.0,0.54894017]
[1752101745855,0.96124554,111420.0,111410.0,0.52153857]
[1752101746055,0.30484554,111420.0,111410.0,0.52153857]
[1752101746255,0.08054574,111430.0,111420.0,0.1794381]
[1752101746454,0.08054574,111430.0,111420.0,1.30114284]
[1752101746657,0.73650574,111430.0,111420.0,1.30114284]
[1752101747156,0.73650574,111430.0,111420.0,0.95436908]
[1752101747560,0.74050574,111430.0,111420.0,0.95436908]
[1752101747760,0.74050574,111430.0,111420.0,1.026054]
[1752101747962,0.74050574,111430.0,111420.0,0.71704471]
[1752101748166,0.65972,111430.0,111420.0,0.71704471]
[1752101748758,0.65972,111430.0,111420.0,0.53754871]
[1752101748965,0.839142,111430.0,111420.0,0.77687308]
[1752101749171,0.839142,111430.0,111420.0,0.29822434]
[1752101749172,0.79473637,111430.0,111420.0,0.29822434]
[1752101749356,1.51169637,111430.0,111420.0,0.01902624]
[1752101749558,1.61551211,111430.0,111420.0,0.01902624]
[1752101749758,1.61551211,111430.0,111420.0,0.005]